bitfinex/quotes_BTCUSD_20241013
["timestamp","ask_amount","ask_price","bid_price","bid_amount"]
[1728777987603,0.001642,63398.0,63397.0,0.48997571]
[1728777988476,0.001642,63398.0,63397.0,0.48997581]
[1728777990751,0.02635278,63398.0,63397.0,0.48997581]
[1728777992883,0.02135278,63398.0,63397.0,0.48997581]
[1728777993565,0.001642,63399.0,63398.0,0.157733]
[1728777993777,0.001642,63399.0,63398.0,0.34364273]
[1728777994025,0.001642,63399.0,63398.0,0.35352209]
[1728777994230,0.001642,63399.0,63398.0,0.37344949]
[1728777994865,0.001642,63399.0,63398.0,0.38744949]
[1728777996058,0.001642,63399.0,63398.0,0.40144949]
[1728778000557,0.02635251,63399.0,63398.0,0.40144949]
[1728778007526,0.001642,63399.0,63398.0,0.40144949]
[1728778007967,0.001642,63399.0,63398.0,0.40144947]
[1728778010537,0.02635253,63399.0,63398.0,0.40144947]
[1728778011160,0.02635253,63399.0,63398.0,0.39157006]
[1728778011396,0.02635253,63399.0,63398.0,0.37872489]
[1728778011607,0.02635253,63399.0,63398.0,0.36688441]
[1728778013268,0.02635253,63399.0,63398.0,0.40144759]
[1728778013497,0.04741113,63403.0,63398.0,0.24371459]
[1728778013733,0.04741113,63403.0,63402.0,0.157723]
[1728778013986,0.04741113,63403.0,63402.0,0.1705662]
[1728778014197,0.04741113,63403.0,63402.0,0.19048846]
[1728778015403,0.04741113,63403.0,63402.0,0.20448846]
[1728778015629,0.04741113,63403.0,63402.0,0.21848846]
[1728778017752,0.04741113,63403.0,63402.0,0.21848841]
[1728778020034,0.0474116,63403.0,63402.0,0.06076541]
[1728778020241,0.0474116,63403.0,63402.0,0.53393441]
[1728778023024,0.04741231,63403.0,63402.0,0.53393441]
[1728778023272,0.07111847,63404.0,63402.0,0.37621141]
[1728778023497,0.07111847,63404.0,63403.0,0.17056415]
[1728778023498,0.07111846,63404.0,63403.0,0.17056415]
[1728778024221,0.07111846,63404.0,63403.0,0.19048533]
[1728778024480,0.07111846,63404.0,63403.0,0.17764218]
[1728778024714,0.07111846,63404.0,63403.0,0.1904853]
[1728778025408,0.18836662,63405.0,63403.0,0.0327643]
[1728778025633,0.26819916,63404.0,63403.0,0.17764218]
[1728778025996,0.17337454,63404.0,63403.0,0.19048559]
[1728778026090,0.18836662,63405.0,63404.0,0.157718]
[1728778026330,0.36179188,63405.0,63404.0,0.17056141]
[1728778026571,0.36179188,63405.0,63404.0,0.19048152]
[1728778026800,0.26989188,63405.0,63404.0,0.19048152]
[1728778027015,0.17506726,63405.0,63404.0,0.35170553]
[1728778027233,0.001642,63405.0,63404.0,0.46379799]
[1728778027455,0.07276194,63405.0,63404.0,0.69992364]
[1728778027678,0.001642,63405.0,63404.0,0.46379799]
[1728778027899,0.001642,63405.0,63404.0,0.4876771]
[1728778027900,0.04905418,63405.0,63404.0,0.4876771]
[1728778028118,0.001642,63405.0,63404.0,0.49951469]
[1728778028335,0.001642,63405.0,63404.0,0.4876771]
[1728778028549,0.01645475,63405.0,63404.0,0.4995117]
[1728778029205,0.01645475,63405.0,63404.0,0.4876771]
[1728778030498,0.04116348,63405.0,63404.0,0.4876771]
[1728778032556,0.04116348,63405.0,63404.0,0.47779799]
[1728778035793,0.04116348,63405.0,63404.0,0.46495458]
[1728778036015,0.04116348,63405.0,63404.0,0.4777971]
[1728778037542,0.01645475,63405.0,63404.0,0.4777971]
[1728778039402,0.001642,63405.0,63404.0,0.4777971]
[1728778039624,0.01644746,63405.0,63404.0,0.4777971]
[1728778041782,0.0411565,63405.0,63404.0,0.4777971]
[1728778047329,0.04115796,63405.0,63404.0,0.4777971]
[1728778047537,0.01644892,63405.0,63404.0,0.4777971]
[1728778048951,0.01644931,63405.0,63404.0,0.4777971]
[1728778050467,0.04115838,63405.0,63404.0,0.4777971]
[1728778054827,0.02635107,63405.0,63404.0,0.4777971]
[1728778055049,0.04116186,63405.0,63404.0,0.4777971]
[1728778056165,0.04116186,63405.0,63404.0,0.48767596]
[1728778062745,0.01645279,63405.0,63404.0,0.49950768]
[1728778065773,0.04116176,63405.0,63404.0,0.49950768]
[1728778066402,0.04116859,63405.0,63404.0,0.46495458]
[1728778066618,0.04116859,63405.0,63404.0,0.48173104]
[1728778066832,0.04116859,63405.0,63404.0,0.49951284]
[1728778067046,0.04116859,63405.0,63404.0,0.48551284]
[1728778067585,0.04116859,63405.0,63404.0,0.47151284]
[1728778067790,0.04116859,63405.0,63404.0,0.48551284]
[1728778067988,0.01645962,63405.0,63404.0,0.49951284]
[1728778069196,0.01645962,63405.0,63404.0,0.50514697]
[1728778070287,0.01645778,63405.0,63404.0,0.47058871]
[1728778070495,0.01645778,63405.0,63404.0,0.50514498]
[1728778071975,0.01645778,63405.0,63404.0,0.49556214]
[1728778072920,0.01645704,63405.0,63404.0,0.46100587]
[1728778073154,0.01645704,63405.0,63404.0,0.47582399]
[1728778073388,0.01645704,63405.0,63404.0,0.49556217]
[1728778075293,0.02635044,63406.0,63405.0,0.24125896]
[1728778075515,0.02635044,63406.0,63405.0,0.41532534]
[1728778075749,0.02635044,63406.0,63405.0,0.4312962]
[1728778076453,0.02635044,63406.0,63405.0,0.4452962]
[1728778077127,0.02635044,63406.0,63405.0,0.4592962]
[1728778077397,0.001642,63406.0,63405.0,0.4592962]
[1728778079902,0.001642,63406.0,63405.0,0.55738866]
[1728778080300,0.02635061,63406.0,63405.0,0.55738866]
[1728778081124,0.02606061,63406.0,63405.0,0.55738866]
[1728778084298,0.02606061,63406.0,63405.0,0.54454629]
[1728778084504,0.02606061,63406.0,63405.0,0.55244933]
[1728778084743,0.02606061,63406.0,63405.0,0.55738873]
[1728778085365,0.07346731,63406.0,63405.0,0.55738873]
[1728778087262,0.07346731,63406.0,63405.0,0.54454629]
[1728778087495,0.06357364,63406.0,63405.0,0.55738871]
[1728778091622,0.06357437,63406.0,63405.0,0.55738873]
[1728778091830,0.08828316,63406.0,63405.0,0.55738873]
[1728778092243,0.18498316,63406.0,63405.0,0.55738873]
[1728778097521,0.16027437,63406.0,63405.0,0.14117726]
[1728778097755,0.46200664,63406.0,63405.0,0.14117726]
[1728778097970,0.36719324,63406.0,63405.0,0.1252064]
[1728778098190,0.36719324,63406.0,63405.0,0.13328467]
[1728778098879,0.35237757,63406.0,63405.0,0.13328467]
[1728778099144,0.35237757,63406.0,63405.0,0.13328506]
[1728778099352,0.36719066,63406.0,63405.0,0.13328506]
[1728778099565,0.46198836,63406.0,63405.0,0.13328506]
[1728778100430,0.48669803,63406.0,63405.0,0.13328506]
[1728778100839,0.48669803,63406.0,63405.0,0.29100106]
[1728778101315,0.48669803,63406.0,63405.0,0.13328506]
[1728778101595,0.55461333,63406.0,63405.0,0.12834527]
[1728778101815,0.77680917,63406.0,63405.0,0.11236396]
[1728778102042,0.65270579,63406.0,63405.0,0.11236396]
[1728778102583,0.7378927,63406.0,63405.0,0.06279072]
[1728778102809,0.92347662,63406.0,63405.0,0.05579072]
[1728778103056,0.92347662,63406.0,63405.0,0.05779072]
[1728778103282,0.78336901,63406.0,63405.0,0.05079072]
[1728778103540,0.75969128,63406.0,63405.0,0.05079072]
[1728778103801,0.75769128,63406.0,63405.0,0.04879072]
[1728778104045,0.8997313,63406.0,63405.0,0.04879072]
[1728778104288,0.9007313,63406.0,63405.0,0.04879072]
[1728778104535,0.75869128,63406.0,63405.0,0.05079072]
[1728778105021,0.75869128,63406.0,63405.0,0.04879072]
[1728778105270,0.76167578,63406.0,63405.0,0.04879072]
[1728778105503,0.76167578,63406.0,63393.0,0.000821]
[1728778105504,0.269743,63394.0,63393.0,0.000821]
[1728778105736,0.6222485,63394.0,63393.0,0.000821]
[1728778105967,0.91416603,63394.0,63393.0,0.01772093]
[1728778106204,0.93888452,63394.0,63393.0,0.000821]
[1728778106479,1.10025423,63394.0,63393.0,0.000821]
[1728778106710,0.012,63389.0,63387.0,0.000821]
[1728778106948,0.83094957,63389.0,63387.0,0.000821]
[1728778107423,0.36349,63375.0,63370.0,0.23612565]
[1728778107724,0.574458,63375.0,63370.0,0.23612565]
[1728778107973,0.269808,63368.0,63366.0,0.00082]
[1728778108204,0.79882586,63368.0,63366.0,0.00082]
[1728778108438,0.8966904,63368.0,63366.0,0.00082]
[1728778108697,1.05806011,63368.0,63366.0,0.00082]
[1728778108990,0.34671,63367.0,63366.0,0.00082]
[1728778109145,0.55740875,63367.0,63366.0,0.00082]
[1728778110082,0.6942332,63367.0,63366.0,0.00082]
[1728778110328,0.6802332,63367.0,63366.0,0.00082]
[1728778110553,0.69269842,63367.0,63366.0,0.00082]
[1728778110759,0.65668724,63367.0,63366.0,0.00082]
[1728778111190,0.67068724,63367.0,63366.0,0.00182]
[1728778111617,0.65668724,63367.0,63366.0,0.00082]
[1728778111838,0.39522507,63367.0,63366.0,0.00082]
[1728778112076,0.40722507,63367.0,63366.0,0.00182]
[1728778112522,0.40922507,63367.0,63366.0,0.00182]
[1728778112746,0.40722507,63367.0,63366.0,0.00182]
[1728778113200,0.40922507,63367.0,63366.0,0.00182]
[1728778113407,0.40722507,63367.0,63366.0,0.00182]
[1728778113644,0.4070798,63367.0,63366.0,0.00182]
[1728778113860,0.50344178,63367.0,63366.0,0.00182]
[1728778114074,0.50544178,63367.0,63366.0,0.00182]
[1728778114929,0.50344178,63367.0,63366.0,0.00182]
[1728778115414,0.4070798,63367.0,63366.0,0.00182]
[1728778117298,0.40706461,63367.0,63366.0,0.00182]
[1728778117533,0.38233262,63367.0,63366.0,0.00182]
[1728778118636,0.77733262,63367.0,63366.0,0.00182]
[1728778118866,0.78233262,63367.0,63366.0,0.00182]
[1728778119511,0.77133262,63367.0,63366.0,0.00182]
[1728778119724,0.80572589,63367.0,63366.0,0.00182]
[1728778119939,0.90572589,63367.0,63366.0,0.00182]
[1728778120147,0.90736789,63367.0,63366.0,0.00182]
[1728778120393,0.93309697,63367.0,63366.0,0.00182]
[1728778121054,0.92109697,63367.0,63366.0,0.00082]
[1728778121279,0.93309697,63367.0,63366.0,0.00182]
[1728778121937,0.92109697,63367.0,63366.0,0.00082]
[1728778122374,0.92109697,63367.0,63366.0,0.00382]
[1728778125177,0.91609697,63367.0,63366.0,0.00382]
[1728778125475,0.68138697,63367.0,63366.0,0.00382]
[1728778125725,0.0579937,63367.0,63366.0,0.161633]
[1728778126191,0.0579937,63367.0,63366.0,0.1881179]
[1728778127418,0.03326462,63367.0,63366.0,0.1881179]
[1728778128741,0.02826462,63367.0,63366.0,0.1881179]
[1728778130281,0.03326462,63367.0,63366.0,0.19306065]
[1728778130521,0.05298922,63367.0,63366.0,0.19306065]
[1728778130957,0.0383666,63367.0,63366.0,0.19306065]
[1728778131176,0.05306993,63367.0,63366.0,0.19306065]
[1728778132319,0.05306993,63367.0,63366.0,0.20096905]
[1728778132550,0.05306993,63367.0,63366.0,0.19306065]
[1728778132816,0.05306993,63367.0,63366.0,0.20096905]
[1728778133056,0.05806993,63367.0,63366.0,0.20096905]
[1728778133493,0.05306993,63367.0,63366.0,0.20096905]
[1728778134629,0.05311569,63367.0,63366.0,0.1881179]
[1728778135081,0.0383666,63367.0,63366.0,0.1881179]
[1728778136408,0.05312969,63367.0,63366.0,0.1881179]
[1728778137500,0.02840509,63367.0,63366.0,0.1881179]
[1728778138425,0.02840509,63367.0,63366.0,0.20096881]
[1728778140052,0.02840509,63367.0,63366.0,0.29906127]
[1728778140293,0.01640509,63367.0,63366.0,0.37326127]
[1728778140512,0.04212889,63367.0,63366.0,0.37626127]
[1728778140975,0.04212889,63367.0,63366.0,0.36341036]
[1728778140976,0.0273658,63367.0,63366.0,0.36341036]
[1728778141220,0.04213114,63367.0,63366.0,0.36831854]
[1728778141435,0.04313114,63367.0,63366.0,0.38126115]
[1728778142113,0.04313114,63367.0,63366.0,0.38126074]
[1728778142352,0.04313114,63367.0,63366.0,0.54248475]
[1728778142590,0.00754707,63367.0,63366.0,0.54248475]
[1728778142813,0.00754707,63367.0,63366.0,0.55429153]
[1728778143025,0.00754707,63367.0,63366.0,0.57729153]
[1728778143230,0.00654707,63367.0,63366.0,0.66249153]
[1728778143453,0.00754707,63367.0,63366.0,0.67649153]
[1728778143669,0.00854707,63367.0,63366.0,0.68970564]
[1728778143885,0.00854707,63367.0,63366.0,0.67249153]
[1728778144096,0.00754707,63367.0,63366.0,0.67249153]
[1728778144324,0.00754707,63367.0,63366.0,0.77458399]
[1728778144562,0.00754707,63367.0,63366.0,0.7777981]
[1728778144763,0.00654707,63367.0,63366.0,0.76258399]
[1728778144987,0.02472227,63374.0,63373.0,0.157795]
[1728778145205,0.02472227,63374.0,63373.0,0.69865431]
[1728778145415,0.23612565,63378.0,63377.0,0.157785]
[1728778145624,0.23612565,63378.0,63377.0,0.42995185]
[1728778145831,0.02471819,63382.0,63378.0,0.315566]
[1728778146089,0.02471819,63382.0,63381.0,0.25586746]
[1728778146330,0.02471819,63382.0,63381.0,0.26871784]
[1728778146539,0.02471819,63382.0,63381.0,0.29498941]
[1728778146969,0.24112565,63385.0,63381.0,0.13721441]
[1728778147199,0.24112565,63385.0,63384.0,0.25586046]
[1728778147452,0.24112565,63385.0,63384.0,0.28706803]
[1728778147453,0.005,63385.0,63384.0,0.28706803]
[1728778149677,0.006,63385.0,63384.0,0.31106803]
[1728778151528,0.03071816,63385.0,63384.0,0.31106803]
[1728778153400,0.03236016,63385.0,63384.0,0.31106803]
[1728778154572,0.0471082,63385.0,63384.0,0.31106803]
[1728778155957,0.0471082,63385.0,63384.0,0.21297557]
[1728778156647,0.0471136,63385.0,63384.0,0.21297557]
[1728778156848,0.0469996,63385.0,63384.0,0.21297557]
[1728778157281,0.02228144,63385.0,63384.0,0.21297557]
[1728778160286,0.04699836,63385.0,63384.0,0.21297557]
[1728778161863,0.12939836,63385.0,63384.0,0.05026512]
[1728778162300,0.11464492,63385.0,63384.0,0.024]
[1728778162713,0.12941485,63385.0,63384.0,0.024]
[1728778162949,0.28718085,63385.0,63384.0,0.05046582]
[1728778163157,0.28718085,63385.0,63384.0,0.024]
[1728778164007,0.28618085,63385.0,63384.0,0.011]
[1728778164221,0.28718085,63385.0,63384.0,0.02]
[1728778164427,0.157786,63377.0,63372.0,0.157797]
[1728778164636,0.004886,63377.0,63376.0,0.23612565]
[1728778164887,0.004886,63377.0,63376.0,0.02648139]
[1728778165114,0.02960823,63377.0,63371.0,0.39392365]
[1728778165313,0.18739423,63377.0,63372.0,0.18428599]
[1728778165547,0.157788,63376.0,63372.0,0.19628599]
[1728778165749,0.157794,63374.0,63372.0,0.03848999]
[1728778165958,0.004886,63373.0,63372.0,0.03848999]
[1728778166168,0.004886,63373.0,63372.0,0.19628799]
[1728778166375,0.004886,63373.0,63372.0,0.20928799]
[1728778166618,0.004886,63373.0,63372.0,0.19628799]
[1728778167688,0.004886,63373.0,63372.0,0.20928799]
[1728778168161,0.004886,63373.0,63372.0,0.19728799]
[1728778168392,0.004886,63373.0,63372.0,0.21128799]
[1728778168821,0.004886,63373.0,63372.0,0.19828799]
[1728778169030,0.004886,63373.0,63372.0,0.18428799]
[1728778169267,0.005886,63373.0,63372.0,0.21228799]
[1728778171071,0.03060844,63373.0,63372.0,0.21228799]
[1728778174028,0.03060844,63373.0,63372.0,0.05448999]
[1728778175446,0.18840344,63373.0,63372.0,0.05448999]
[1728778175689,0.26450344,63373.0,63372.0,0.028]
[1728778175911,0.35860344,63373.0,63372.0,0.014]
[1728778176149,0.162696,63367.0,63366.0,0.00082]
[1728778176391,0.333896,63367.0,63366.0,0.00082]
[1728778176640,0.333896,63367.0,63366.0,0.02738127]
[1728778176970,0.38114055,63367.0,63366.0,0.00082]
[1728778177203,0.40476283,63367.0,63366.0,0.00082]
[1728778177425,0.74794679,63367.0,63366.0,0.00082]
[1728778177647,0.65345769,63367.0,63366.0,0.00082]
[1728778178114,0.71009612,63367.0,63366.0,0.00082]
[1728778178342,0.71009612,63367.0,63366.0,0.00882]
[1728778178576,0.87580112,63367.0,63366.0,0.00882]
[1728778178805,0.87580112,63367.0,63366.0,0.00082]
[1728778179328,0.76076241,63367.0,63366.0,0.01282]
[1728778179550,0.75776241,63367.0,63366.0,0.00382]
[1728778180303,0.75776241,63367.0,63366.0,0.00682]
[1728778180544,0.87572669,63367.0,63366.0,0.00682]
[1728778181039,0.87772669,63367.0,63366.0,0.00682]
[1728778181525,0.7588826,63367.0,63366.0,0.00682]
[1728778181770,0.7568826,63367.0,63366.0,0.00682]
[1728778182253,0.80561995,63367.0,63366.0,0.00082]
[1728778182504,0.80561995,63367.0,63362.0,0.00082]
[1728778182505,0.439506,63363.0,63362.0,0.00082]
[1728778183424,0.58526475,63363.0,63362.0,0.00082]
[1728778183647,0.6807068,63363.0,63362.0,0.00082]
[1728778184100,0.6867068,63363.0,63362.0,0.00182]
[1728778184558,0.66912055,63363.0,63362.0,0.00282]
[1728778184810,0.621996,63363.0,63362.0,0.00282]
[1728778185277,0.66912065,63363.0,63362.0,0.00282]
[1728778185751,0.5233619,63363.0,63362.0,0.00282]
[1728778186621,0.47623725,63363.0,63362.0,0.00282]
[1728778190878,0.451506,63363.0,63362.0,0.00282]
[1728778192237,0.361206,63363.0,63362.0,0.00282]
[1728778192480,0.40907339,63363.0,63362.0,0.00282]
[1728778192728,0.451506,63363.0,63362.0,0.00282]
[1728778193211,0.439506,63363.0,63362.0,0.00082]
[1728778193449,0.46423719,63363.0,63362.0,0.00082]
[1728778193931,0.47023719,63363.0,63362.0,0.00082]
[1728778197431,0.445506,63363.0,63362.0,0.00082]
[1728778200527,0.47023708,63363.0,63362.0,0.00082]
[1728778206729,0.51731763,63363.0,63362.0,0.00082]
[1728778207691,0.445506,63363.0,63362.0,0.00082]
[1728778208363,0.51612682,63363.0,63362.0,0.00082]
[1728778208600,0.51622811,63363.0,63362.0,0.00082]
[1728778209582,0.71181482,63363.0,63362.0,0.00082]
[1728778210475,0.73654573,63363.0,63362.0,0.00082]
[1728778211138,0.73854573,63363.0,63362.0,0.00082]
[1728778211421,0.64224958,63363.0,63362.0,0.00082]
[1728778212363,0.76011977,63363.0,63362.0,0.00082]
[1728778213772,0.64224958,63363.0,63362.0,0.00082]
[1728778214439,0.89389459,63363.0,63356.0,0.000821]
[1728778214663,0.23353275,63357.0,63356.0,0.000821]
[1728778214874,0.42914934,63357.0,63356.0,0.000821]
[1728778215097,0.33473367,63357.0,63356.0,0.000821]
[1728778215559,0.60304177,63357.0,63356.0,0.000821]
[1728778215992,0.60304177,63357.0,63356.0,0.003821]
[1728778216698,0.48502218,63357.0,63356.0,0.003821]
[1728778216905,0.33473367,63357.0,63356.0,0.003821]
[1728778217359,0.33473367,63357.0,63356.0,0.005821]
[1728778224793,0.34953252,63357.0,63356.0,0.005821]
[1728778227697,0.17751985,63357.0,63356.0,0.005821]
[1728778227911,0.35004606,63357.0,63356.0,0.005821]
[1728778228159,0.37074728,63357.0,63356.0,0.005821]
[1728778232533,0.35594843,63357.0,63356.0,0.005821]
[1728778232760,0.37066389,63357.0,63356.0,0.005821]
[1728778234423,0.2364948,63357.0,63353.0,0.000821]
[1728778234644,0.162729,63354.0,63353.0,0.000821]
[1728778234887,0.37363658,63354.0,63353.0,0.000821]
[1728778235362,0.39836864,63354.0,63353.0,0.000821]
[1728778235583,0.39836864,63354.0,63353.0,0.003821]
[1728778235811,0.39836864,63354.0,63353.0,0.000821]
[1728778235999,0.39836864,63354.0,63353.0,0.002821]
[1728778236216,0.39936864,63354.0,63353.0,0.008821]
[1728778236441,0.39936864,63354.0,63353.0,0.006821]
[1728778236882,0.39936864,63354.0,63353.0,0.012821]
[1728778242343,0.39960119,63354.0,63353.0,0.012821]
[1728778242590,0.37593528,63354.0,63353.0,0.012821]
[1728778244457,0.37593528,63354.0,63353.0,0.04858421]
[1728778244670,0.37593528,63354.0,63353.0,0.012821]
[1728778244906,0.37593528,63354.0,63353.0,0.04858421]
[1728778245122,0.37593528,63354.0,63353.0,0.012821]
[1728778245337,0.37593528,63354.0,63353.0,0.04858421]
[1728778245547,0.37593528,63354.0,63353.0,0.012821]
[1728778245766,0.37593528,63354.0,63353.0,0.04858421]
[1728778245980,0.37593528,63354.0,63353.0,0.012821]
[1728778246245,0.37593528,63354.0,63353.0,0.04858421]
[1728778246457,0.37593528,63354.0,63353.0,0.04860323]
[1728778247799,0.36114451,63354.0,63353.0,0.04860323]
[1728778248024,0.37594817,63354.0,63353.0,0.04860323]
[1728778249555,0.35121611,63354.0,63353.0,0.04860323]
[1728778251865,0.35109733,63354.0,63353.0,0.04860323]
[1728778252543,0.49316087,63354.0,63353.0,0.04860323]
[1728778253001,0.51789245,63354.0,63353.0,0.04860323]
[1728778255570,0.51789274,63354.0,63353.0,0.04860323]
[1728778256503,0.49316116,63354.0,63353.0,0.012821]
[1728778256702,0.49318556,63354.0,63353.0,0.012821]
[1728778259216,0.47838161,63354.0,63353.0,0.012821]
[1728778259450,0.49318567,63354.0,63353.0,0.012821]
[1728778259708,0.51791726,63354.0,63353.0,0.012821]
[1728778260199,0.5031132,63354.0,63353.0,0.012821]
[1728778260429,0.5179173,63354.0,63353.0,0.012821]
[1728778260906,0.51796642,63354.0,63353.0,0.012821]
[1728778263712,0.51797636,63354.0,63353.0,0.012821]
[1728778264678,0.37586263,63354.0,63353.0,0.012821]
[1728778265169,0.51797873,63354.0,63353.0,0.012821]
[1728778266560,0.51797979,63354.0,63353.0,0.012821]
[1728778268827,0.37586369,63354.0,63353.0,0.012821]
[1728778269078,0.5179718,63354.0,63353.0,0.012821]
[1728778269534,0.37586369,63354.0,63353.0,0.012821]
[1728778269741,0.37584045,63354.0,63353.0,0.012821]
[1728778270425,0.36103529,63354.0,63353.0,0.012821]
[1728778270640,0.37584136,63354.0,63353.0,0.012821]
[1728778273896,0.36103529,63354.0,63353.0,0.012821]
[1728778274138,0.51795545,63354.0,63353.0,0.012821]
[1728778275040,0.37584168,63354.0,63353.0,0.012821]
[1728778275972,0.51795719,63354.0,63353.0,0.012821]
[1728778276186,0.37584168,63354.0,63353.0,0.012821]
[1728778276407,0.37584168,63354.0,63353.0,0.04860454]
[1728778276630,0.37584168,63354.0,63353.0,0.012821]
[1728778276852,0.37584168,63354.0,63353.0,0.04860454]
[1728778277330,0.51795625,63354.0,63353.0,0.04860454]
[1728778277566,0.47841827,63354.0,63353.0,0.04860454]
[1728778277784,0.49322493,63354.0,63353.0,0.04860454]
[1728778278282,0.19326736,63354.0,63353.0,0.38869359]
[1728778278498,0.13425487,63354.0,63353.0,0.39660351]
[1728778278982,0.13425487,63354.0,63353.0,0.39060351]
[1728778279461,0.13325487,63354.0,63353.0,0.38960351]
[1728778279679,0.13325487,63354.0,63353.0,0.40060351]
[1728778279919,0.13425487,63354.0,63353.0,0.39560351]
[1728778280132,0.13525487,63354.0,63353.0,0.40960351]
[1728778280588,0.15898391,63354.0,63353.0,0.39560351]
[1728778281288,0.14417725,63354.0,63353.0,0.39560351]
[1728778281522,0.15896114,63354.0,63353.0,0.39560212]
[1728778281744,0.15896114,63354.0,63353.0,0.40960212]
[1728778281962,0.15896114,63354.0,63353.0,0.42360212]
[1728778282202,0.15796114,63354.0,63353.0,0.39860212]
[1728778282417,0.15796114,63354.0,63353.0,0.41260212]
[1728778287477,0.1332321,63354.0,63353.0,0.41260212]
[1728778288136,0.01478389,63354.0,63353.0,0.41260212]
[1728778289085,0.001642,63356.0,63355.0,0.15784]
[1728778289303,0.001642,63356.0,63355.0,0.26095108]
[1728778289304,0.0164095,63356.0,63355.0,0.26095108]
[1728778289522,0.0164095,63356.0,63355.0,0.29781413]
[1728778290644,0.0164095,63356.0,63355.0,0.39621413]
[1728778291773,0.0174095,63356.0,63355.0,0.41021413]
[1728778292005,0.0174095,63356.0,63355.0,0.42421413]
[1728778292723,0.0174095,63356.0,63355.0,0.41927089]
[1728778292724,0.002642,63356.0,63355.0,0.41927089]
[1728778292983,0.01740775,63356.0,63355.0,0.42421417]
[1728778297140,0.002642,63356.0,63355.0,0.41927089]
[1728778298295,0.01740944,63356.0,63355.0,0.42421421]
[1728778300334,0.01740944,63356.0,63355.0,0.41927089]
[1728778300554,0.01740944,63356.0,63355.0,0.42421421]
[1728778303112,0.01740944,63356.0,63355.0,0.32581421]
[1728778303331,0.01741909,63356.0,63355.0,0.32581421]
[1728778303540,0.01741909,63356.0,63355.0,0.33372352]
[1728778304269,0.002642,63356.0,63355.0,0.32087089]
[1728778304501,0.002642,63356.0,63355.0,0.33372352]
[1728778304502,0.01742233,63356.0,63355.0,0.33372352]
[1728778308206,0.01742233,63356.0,63355.0,0.23555568]
[1728778308453,0.27014633,63356.0,63355.0,0.07771568]
[1728778308683,0.44611417,63356.0,63355.0,0.06486305]
[1728778309151,0.44611417,63356.0,63355.0,0.028]
[1728778309376,0.51700131,63356.0,63355.0,0.028]
[1728778309602,0.35816331,63356.0,63353.0,0.000821]
[1728778309845,0.25723517,63354.0,63353.0,0.000821]
[1728778310124,0.44644589,63354.0,63353.0,0.000821]
[1728778310782,0.44644589,63354.0,63353.0,0.003821]
[1728778311460,0.44644589,63354.0,63353.0,0.000821]
[1728778311683,0.44644589,63354.0,63353.0,0.005821]
[1728778311896,0.47117817,63354.0,63353.0,0.005821]
[1728778312115,0.47217817,63354.0,63353.0,0.011821]
[1728778312549,0.47217433,63354.0,63353.0,0.011821]
[1728778316447,0.44744205,63354.0,63353.0,0.011821]
[1728778317576,0.44743964,63354.0,63353.0,0.011821]
[1728778319793,0.47217172,63354.0,63353.0,0.011821]
[1728778320270,0.45739523,63354.0,63353.0,0.011821]
[1728778320499,0.4721607,63354.0,63353.0,0.011821]
[1728778320946,0.44742862,63354.0,63353.0,0.011821]
[1728778321920,0.35292328,63354.0,63353.0,0.011821]
[1728778322158,0.47105462,63354.0,63353.0,0.011821]
[1728778323343,0.49578713,63354.0,63353.0,0.011821]
[1728778323767,0.20322664,63354.0,63353.0,0.011821]
[1728778324021,0.96256402,63354.0,63353.0,0.011821]
[1728778324237,0.75083184,63354.0,63353.0,0.011821]
[1728778324962,0.74983184,63354.0,63353.0,0.000821]
[1728778325928,0.75583184,63354.0,63353.0,0.001821]
[1728778326139,0.75883184,63354.0,63353.0,0.001821]
[1728778326356,0.76817776,63354.0,63353.0,0.001821]
[1728778326576,0.88072079,63354.0,63353.0,0.001821]
[1728778327785,0.004886,63342.0,63341.0,0.000821]
[1728778328030,0.17752413,63342.0,63341.0,0.000821]
[1728778328269,0.22472648,63342.0,63341.0,0.000821]
[1728778328476,0.20226092,63342.0,63341.0,0.000821]
[1728778328938,0.20326092,63342.0,63341.0,0.007821]
[1728778329216,0.20326092,63342.0,63341.0,0.013821]
[1728778329454,0.20324618,63342.0,63341.0,0.013821]
[1728778329945,0.46382041,63342.0,63341.0,0.013821]
[1728778330160,0.46380446,63342.0,63341.0,0.013821]
[1728778330427,0.39188127,63342.0,63341.0,0.013821]
[1728778330637,0.46279713,63342.0,63341.0,0.006821]
[1728778330861,0.34072525,63342.0,63341.0,0.006821]
[1728778331085,0.34072525,63342.0,63341.0,0.001821]
[1728778331520,0.29354799,63342.0,63341.0,0.001821]
[1728778333190,0.29355028,63342.0,63341.0,0.001821]
[1728778334102,0.41601447,63342.0,63341.0,0.001821]
[1728778334792,0.32471447,63342.0,63341.0,0.001821]
[1728778336128,0.20225028,63342.0,63341.0,0.001821]
[1728778336846,0.20226133,63342.0,63341.0,0.001821]
[1728778340376,0.20227348,63342.0,63341.0,0.001821]
[1728778341737,0.20227348,63342.0,63341.0,0.03794795]
[1728778341981,0.20227348,63342.0,63341.0,0.001821]
[1728778347949,0.20228256,63342.0,63341.0,0.001821]
[1728778349506,0.24945476,63342.0,63341.0,0.001821]
[1728778351593,0.1874976,63342.0,63341.0,0.001821]
[1728778352566,0.25825591,63342.0,63341.0,0.001821]
[1728778353457,0.25825591,63342.0,63341.0,0.00676619]
[1728778353732,0.1874976,63342.0,63341.0,0.00676619]
[1728778354203,0.25839302,63342.0,63341.0,0.00676619]
[1728778354660,0.25840833,63342.0,63341.0,0.00676619]
[1728778355311,0.1874976,63342.0,63341.0,0.00676619]
[1728778355538,0.456344,63342.0,63341.0,0.00676613]
[1728778356916,0.45656625,63342.0,63341.0,0.00676613]
[1728778357382,0.45656625,63342.0,63341.0,0.04350574]
[1728778357621,0.45656625,63342.0,63341.0,0.00676613]
[1728778357854,0.36199959,63342.0,63341.0,0.001821]
[1728778358078,0.45657516,63342.0,63341.0,0.04350574]
[1728778358296,0.45657516,63342.0,63341.0,0.00676613]
[1728778359258,0.45657516,63342.0,63341.0,0.04350574]
[1728778359488,0.45657516,63342.0,63341.0,0.00676613]
[1728778360616,0.36199959,63342.0,63341.0,0.00676613]
[1728778361728,0.47993011,63342.0,63341.0,0.00676613]
[1728778361942,0.36199959,63342.0,63341.0,0.00676613]
[1728778362164,0.20412659,63342.0,63341.0,0.00676613]
[1728778362397,0.004886,63339.0,63338.0,0.157882]
[1728778362658,0.004886,63339.0,63338.0,0.16579365]
[1728778363351,0.0247386,63342.0,63341.0,0.157875]
[1728778363610,0.0247386,63342.0,63341.0,0.35421068]
[1728778363853,0.0247386,63342.0,63341.0,0.53323372]
[1728778364324,0.0247386,63342.0,63341.0,0.52334592]
[1728778364563,0.0247386,63342.0,63341.0,0.42517808]